fUSD/lending_fUSD_20250106
["ID","MTS","AMOUNT","RATE_DAILY","PERIOD"]
[347899398,1736189432173,-1919.04,8.673e-05,2]
[347899400,1736189432183,-2629.24,8.673e-05,2]
[347899402,1736189432193,-500.0,8.673e-05,2]
[347899404,1736189432203,-500.0,8.673e-05,2]
[347899406,1736189432212,-500.0,8.673e-05,2]
[347899408,1736189432222,-1782.08,8.673e-05,2]
[347899410,1736189432230,-500.0,8.673e-05,2]
[347899412,1736189432239,-510.57,8.673e-05,2]
[347899414,1736189432249,-891.65,8.673e-05,2]
[347899415,1736189432258,-721.63,8.673e-05,2]
[347899417,1736189432268,-977.83,8.673e-05,2]
[347899418,1736189432278,-518.71049393,8.673e-05,2]
[347899421,1736189432287,-1000.0,8.673e-05,2]
[347899423,1736189432302,-500.0,8.673e-05,2]
[347899425,1736189432312,-500.0,8.673e-05,2]
[347899427,1736189432326,-501.3263493,8.673e-05,2]
[347899429,1736189432338,-934.01,8.674e-05,2]
[347899431,1736189432348,-504.2,8.69e-05,2]
[347899433,1736189432358,-1359.82,8.692e-05,2]
[347899435,1736189432368,-500.0,8.736e-05,2]
[347899436,1736189432378,-2890.63,8.767e-05,2]
[347899438,1736189432387,-500.21005083,8.846e-05,2]
[347899441,1736189432398,-500.0,8.846e-05,2]
[347899442,1736189432407,-950.49,8.846e-05,2]
[347899445,1736189432418,-500.0,8.846e-05,2]
[347899446,1736189432428,-500.0,8.846e-05,2]
[347899449,1736189432438,-150.0,8.852e-05,2]
[347899451,1736189432448,-150.0,8.852e-05,2]
[347899452,1736189432457,-150.0,8.852e-05,2]
[347899454,1736189432466,-150.37397823,8.852e-05,2]
[347899456,1736189432475,-150.0,8.852e-05,2]
[347899458,1736189432484,-500.0,8.872e-05,2]
[347899460,1736189432494,-500.0,8.872e-05,2]
[347899462,1736189432503,-986.85,8.872e-05,2]
[347899464,1736189432513,-500.0,8.872e-05,2]
[347899466,1736189432523,-1111.18,8.872e-05,2]
[347899468,1736189432532,-500.0,8.872e-05,2]
[347899470,1736189432541,-801.77,8.872e-05,2]
[347899472,1736189432553,-500.0,8.872e-05,2]
[347899474,1736189432563,-1156.68,8.872e-05,2]
[347899476,1736189432578,-500.0,8.872e-05,2]
[347899478,1736189432587,-500.0,8.872e-05,2]
[347899480,1736189432597,-500.0,8.872e-05,2]
[347899482,1736189432607,-500.0,8.872e-05,2]
[347899484,1736189432617,-500.0,8.872e-05,2]
[347899486,1736189432626,-724.365056,8.872e-05,2]
[347899488,1736189432635,-500.0,8.872e-05,2]
[347899490,1736189432644,-589.03,8.872e-05,2]
[347899492,1736189432654,-625.88553,8.873e-05,2]
[347899494,1736189432663,-792.9,8.873e-05,2]
[347899496,1736189432673,-1150.01,8.873e-05,2]
[347899498,1736189432682,-500.0,8.873e-05,2]
[347899500,1736189432692,-500.0,8.873e-05,2]
[347899502,1736189432701,-1543.22,8.873e-05,2]
[347899504,1736189432710,-489.9895,8.873e-05,2]
[347899506,1736189432719,-500.0,8.873e-05,2]
[347899508,1736189432729,-500.0,8.873e-05,2]
[347899510,1736189432739,-327.57094144,8.873e-05,2]
[347899512,1736189432748,-500.0,8.873e-05,2]
[347899514,1736189432758,-500.0,8.873e-05,2]
[347899516,1736189432767,-500.0,8.873e-05,2]
[347899518,1736189432776,-500.0,8.873e-05,2]
[347899520,1736189432786,-500.0,8.873e-05,2]
[347899522,1736189432795,-500.0,8.873e-05,2]
[347899524,1736189432804,-162.22,8.873e-05,2]
[347899526,1736189432813,-500.0,8.873e-05,2]
[347899528,1736189432827,-205.86,8.873e-05,2]
[347899530,1736189432836,-403.95,8.873e-05,2]
[347899532,1736189432846,-500.0,8.873e-05,2]
[347899534,1736189432855,-500.0,8.873e-05,2]
[347899536,1736189432866,-325.42615129,8.873e-05,2]
[347899538,1736189432875,-500.0,8.873e-05,2]
[347899540,1736189432885,-500.0,8.873e-05,2]
[347899542,1736189432895,-500.0,8.873e-05,2]
[347899544,1736189432904,-500.0,8.873e-05,2]
[347899547,1736189432914,-500.0,8.873e-05,2]
[347899574,1736189433166,-500.0,8.873e-05,2]
[347899576,1736189433177,-500.0,8.873e-05,2]
[347899578,1736189433186,-500.0,8.873e-05,2]
[347899580,1736189433195,-500.0,8.873e-05,2]
[347899582,1736189433205,-500.0,8.873e-05,2]
[347899584,1736189433215,-500.0,8.873e-05,2]
[347899586,1736189433226,-500.0,8.873e-05,2]
[347899588,1736189433236,-500.0,8.873e-05,2]
[347899590,1736189433246,-500.0,8.873e-05,2]
[347899592,1736189433255,-500.0,8.873e-05,2]
[347899594,1736189433264,-500.0,8.873e-05,2]
[347899596,1736189433273,-500.0,8.873e-05,2]
[347899598,1736189433283,-500.0,8.873e-05,2]
[347899600,1736189433294,-500.0,8.873e-05,2]
[347899602,1736189433308,-500.0,8.873e-05,2]
[347899604,1736189433318,-500.0,8.873e-05,2]
[347899606,1736189433327,-500.0,8.873e-05,2]
[347899608,1736189433339,-500.0,8.873e-05,2]
[347899610,1736189433350,-500.0,8.873e-05,2]
[347899612,1736189433359,-500.0,8.873e-05,2]
[347899614,1736189433369,-500.0,8.873e-05,2]
[347899615,1736189433379,-500.0,8.873e-05,2]
[347899617,1736189433388,-500.0,8.873e-05,2]
[347899619,1736189433397,-500.0,8.873e-05,2]
[347899621,1736189433407,-500.0,8.873e-05,2]
[347899623,1736189433416,-500.0,8.873e-05,2]
[347899625,1736189433426,-500.0,8.873e-05,2]
[347899627,1736189433436,-500.0,8.873e-05,2]
[347899629,1736189433447,-500.0,8.873e-05,2]
[347899631,1736189433457,-500.0,8.873e-05,2]
[347899634,1736189433467,-500.0,8.873e-05,2]
[347899636,1736189433477,-500.0,8.873e-05,2]
[347899638,1736189433486,-330.18984894,8.873e-05,2]
[347899640,1736189433496,-500.0,8.873e-05,2]
[347899642,1736189433506,-500.0,8.873e-05,2]
[347899643,1736189433516,-500.0,8.873e-05,2]
[347899646,1736189433526,-500.0,8.873e-05,2]
[347899648,1736189433536,-500.0,8.873e-05,2]
[347899650,1736189433545,-500.0,8.873e-05,2]
[347899652,1736189433557,-500.0,8.873e-05,2]
[347899654,1736189433570,-1033.45,8.873e-05,2]
[347899656,1736189433580,-500.0,8.873e-05,2]
[347899658,1736189433590,-500.0,8.873e-05,2]
[347899660,1736189433600,-500.0,8.873e-05,2]
[347899662,1736189433611,-500.0,8.873e-05,2]
[347899664,1736189433621,-500.0,8.873e-05,2]
[347899666,1736189433633,-706.24,8.873e-05,2]
[347899668,1736189433643,-500.0,8.873e-05,2]
[347899670,1736189433654,-500.0,8.873e-05,2]
[347899672,1736189433664,-500.0,8.873e-05,2]
[347899674,1736189433673,-199.97396015,8.873e-05,2]
[347899676,1736189433683,-989.94,8.873e-05,2]
[347899678,1736189433693,-500.0,8.873e-05,2]
[347899680,1736189433703,-500.0,8.873e-05,2]
[347899682,1736189433713,-500.0,8.873e-05,2]
[347899683,1736189433723,-500.0,8.873e-05,2]
[347899685,1736189433733,-519.82,8.873e-05,2]
[347899687,1736189433743,-500.0,8.873e-05,2]
[347899689,1736189433753,-522.43,8.873e-05,2]
[347899691,1736189433764,-500.0,8.873e-05,2]
[347899693,1736189433774,-2742.45,8.873e-05,2]
[347899696,1736189433784,-500.0,8.873e-05,2]
[347899697,1736189433795,-832.31,8.873e-05,2]
[347899699,1736189433806,-500.0,8.873e-05,2]
[347899701,1736189433817,-500.0,8.873e-05,2]
[347899703,1736189433827,-500.0,8.873e-05,2]
[347899705,1736189433837,-500.0,8.873e-05,2]
[347899707,1736189433846,-500.0,8.873e-05,2]
[347899709,1736189433857,-395.4096724,8.873e-05,2]
[347899711,1736189433866,-500.0,8.873e-05,2]
[347899713,1736189433875,-500.0,8.873e-05,2]
[347899715,1736189433885,-500.0,8.873e-05,2]
[347899717,1736189433894,-4761.06,8.873e-05,2]
[347899719,1736189433903,-500.0,8.873e-05,2]
[347899721,1736189433913,-1475.24,8.873e-05,2]
[347899723,1736189433923,-839.07,8.873e-05,2]
[347899725,1736189433934,-258.35015106,8.873e-05,2]
[347899727,1736189433944,-500.0,8.873e-05,2]
[347899729,1736189433954,-1617.62,8.873e-05,2]
[347899731,1736189433963,-1273.42,8.873e-05,2]
[347899733,1736189433972,-500.0,8.873e-05,2]
[347899735,1736189433981,-500.0,8.873e-05,2]
[347899737,1736189433991,-500.0,8.873e-05,2]
[347899739,1736189434001,-935.08,8.873e-05,2]
[347899741,1736189434010,-500.0,8.873e-05,2]
[347899744,1736189434020,-500.0,8.873e-05,2]
[347899745,1736189434030,-500.0,8.873e-05,2]
[347899747,1736189434040,-1861.95,8.873e-05,2]
[347899749,1736189434049,-500.0,8.873e-05,2]
[347899751,1736189434059,-736.89,8.873e-05,2]
[347899753,1736189434070,-234.45,8.873e-05,2]
[347899755,1736189434081,-500.0,8.873e-05,2]
[347899758,1736189434091,-2848.75,8.873e-05,2]
[347899759,1736189434101,-212.02409958,8.873e-05,2]
[347899761,1736189434111,-203.86492456,8.873e-05,2]
[347899763,1736189434121,-1682.36,8.873e-05,2]
[347899765,1736189434131,-1832.87,8.873e-05,2]
[347899768,1736189434141,-500.0,8.873e-05,2]
[347899770,1736189434151,-500.0,8.873e-05,2]
[347899772,1736189434161,-500.0,8.873e-05,2]
[347899774,1736189434171,-285.54229155,8.873e-05,2]
[347899776,1736189434180,-500.0,8.873e-05,2]
[347899778,1736189434190,-370.27,8.873e-05,2]
[347899780,1736189434200,-500.0,8.873e-05,2]
[347899781,1736189434210,-500.0,8.873e-05,2]
[347899784,1736189434221,-500.0,8.873e-05,2]
[347899785,1736189434231,-1766.5,8.873e-05,2]
[347899787,1736189434241,-500.0,8.873e-05,2]
[347899789,1736189434250,-500.0,8.873e-05,2]
[347899792,1736189434260,-500.0,8.904e-05,2]
[347899793,1736189434270,-653.36,8.947e-05,2]
[347899795,1736189434279,-500.0,8.947e-05,2]
[347899798,1736189434289,-500.0,8.947e-05,2]
[347899799,1736189434302,-903.73,8.947e-05,2]
[347899801,1736189434311,-500.0,8.947e-05,2]
[347899804,1736189434322,-500.0,8.947e-05,2]
[347899805,1736189434332,-500.0,8.947e-05,2]
[347899807,1736189434343,-500.0,8.947e-05,2]
[347899810,1736189434354,-753.23,8.947e-05,2]
[347899812,1736189434364,-1080.44,8.947e-05,2]
[347899814,1736189434374,-1919.04,8.947e-05,2]
[347899816,1736189434384,-2629.24,8.947e-05,2]
[347899817,1736189434393,-500.0,8.947e-05,2]
[347899820,1736189434403,-500.0,8.947e-05,2]
[347899822,1736189434413,-500.0,8.947e-05,2]
[347899823,1736189434422,-1782.08,8.947e-05,2]
[347899826,1736189434432,-500.0,8.947e-05,2]
[347899828,1736189434442,-510.57,8.947e-05,2]
[347899830,1736189434453,-891.65,8.947e-05,2]
[347899832,1736189434462,-721.63,8.947e-05,2]
[347899833,1736189434472,-977.83,8.947e-05,2]
[347899836,1736189434482,-1000.0,8.947e-05,2]
[347899838,1736189434492,-500.0,8.947e-05,2]
[347899840,1736189434502,-500.0,8.947e-05,2]
[347899842,1736189434512,-934.01,8.948e-05,2]
[347899844,1736189434522,-150.0,8.993e-05,2]
[347899846,1736189434532,-1069.22117092,9e-05,2]
[347899848,1736189434542,-11310.47576354,9e-05,2]
[347899850,1736189434552,-500.0,9.01e-05,2]
[347899852,1736189434563,-500.91049735,9.047e-05,2]
[347899854,1736189434575,-500.0,9.047e-05,2]
[347899856,1736189434584,-386.67342082,9.047e-05,2]
[347899858,1736189434597,-500.14505605,9.047e-05,2]
[347899860,1736189434606,-200.74229359,9.047e-05,2]
[347899862,1736189434616,-501.18584784,9.047e-05,2]
[347899864,1736189434625,-300.52286915,9.047e-05,2]
[347899866,1736189434635,-500.49409309,9.047e-05,2]
[347899868,1736189434644,-500.0,9.047e-05,2]
[347899870,1736189434655,-500.64202309,9.047e-05,2]
[347899872,1736189434664,-502.73523432,9.047e-05,2]
[347899874,1736189434675,-500.0,9.047e-05,2]
[347899876,1736189434684,-500.63039802,9.047e-05,2]
[347899878,1736189434694,-500.88764755,9.047e-05,2]
[347899880,1736189434704,-500.86620053,9.047e-05,2]
[347899882,1736189434717,-501.19377836,9.047e-05,2]
[347899884,1736189434727,-156.68560212,9.047e-05,2]
[347899886,1736189434736,-500.0,9.047e-05,2]
[347899888,1736189434746,-500.66813291,9.047e-05,2]
[347899890,1736189434756,-500.24940782,9.047e-05,2]
[347899892,1736189434771,-500.41380996,9.047e-05,2]
[347899894,1736189434781,-500.66082155,9.047e-05,2]
[347899896,1736189434791,-500.68298453,9.047e-05,2]
[347899898,1736189434800,-500.66779686,9.047e-05,2]
[347899900,1736189434810,-500.48169029,9.047e-05,2]
[347899902,1736189434820,-500.33062916,9.047e-05,2]
[347899904,1736189434830,-500.20219679,9.047e-05,2]
[347899906,1736189434839,-500.19582289,9.047e-05,2]
[347899908,1736189434849,-500.47349783,9.047e-05,2]
[347899910,1736189434859,-500.0,9.047e-05,2]
[347899912,1736189434869,-1000.0,9.047e-05,2]
[347899914,1736189434878,-500.38666215,9.047e-05,2]
[347899916,1736189434887,-500.5591255,9.047e-05,2]
[347899918,1736189434897,-732.35,9.047e-05,2]
[347899920,1736189434906,-587.95,9.047e-05,2]
[347899922,1736189434915,-936.15,9.047e-05,2]
[347899924,1736189434924,-2514.86,9.047e-05,2]
[347899926,1736189434933,-913.34,9.047e-05,2]
[347899928,1736189434942,-1519.91,9.047e-05,2]
[347899930,1736189434951,-856.06,9.047e-05,2]
[347899932,1736189434960,-828.94,9.047e-05,2]
[347899934,1736189434969,-500.0,9.047e-05,2]
[347899936,1736189434979,-1332.6,9.047e-05,2]
[347899938,1736189434988,-950.49,9.12e-05,2]
[347899940,1736189434997,-500.0,9.12e-05,2]
[347899942,1736189435006,-500.0,9.12e-05,2]
[347899944,1736189435016,-500.0,9.121e-05,2]
[347899946,1736189435025,-1000.0,9.121e-05,2]
[347899948,1736189435035,-150.0,9.133e-05,2]
[347899950,1736189435044,-500.0,9.146e-05,2]
[347899952,1736189435053,-500.0,9.146e-05,2]
[347899954,1736189435062,-986.85,9.146e-05,2]
[347899956,1736189435072,-500.0,9.146e-05,2]
[347899958,1736189435081,-1111.18,9.146e-05,2]
[347899959,1736189435091,-500.0,9.146e-05,2]
[347899960,1736189435100,-801.77,9.146e-05,2]
[347899961,1736189435110,-500.0,9.146e-05,2]
[347899962,1736189435119,-1156.68,9.146e-05,2]
[347899963,1736189435129,-500.0,9.146e-05,2]
[347899964,1736189435138,-500.0,9.146e-05,2]
[347899965,1736189435147,-500.0,9.146e-05,2]
[347899966,1736189435157,-500.0,9.146e-05,2]
[347899967,1736189435166,-500.0,9.146e-05,2]
[347899968,1736189435176,-724.365056,9.146e-05,2]
[347899969,1736189435186,-500.0,9.146e-05,2]
[347899970,1736189435195,-589.03,9.146e-05,2]
[347899971,1736189435205,-625.88553,9.147e-05,2]
[347899973,1736189435214,-792.9,9.147e-05,2]
[347899975,1736189435223,-1150.01,9.147e-05,2]
[347899977,1736189435232,-500.0,9.147e-05,2]
[347899979,1736189435242,-500.0,9.147e-05,2]
[347899981,1736189435251,-1543.22,9.147e-05,2]
[347899983,1736189435260,-500.0,9.147e-05,2]
[347899985,1736189435270,-500.0,9.147e-05,2]
[347899987,1736189435279,-500.0,9.147e-05,2]
[347899989,1736189435288,-500.0,9.147e-05,2]
[347899991,1736189435299,-454.64,9.147e-05,2]
[347899993,1736189435310,-500.0,9.147e-05,2]
[347899995,1736189435320,-500.0,9.147e-05,2]
[347899997,1736189435329,-500.0,9.147e-05,2]
[347900000,1736189435339,-500.0,9.147e-05,2]
[347900002,1736189435349,-500.0,9.147e-05,2]
[347900003,1736189435358,-392.99,9.147e-05,2]
[347900005,1736189435367,-500.0,9.147e-05,2]
[347900008,1736189435380,-500.0,9.147e-05,2]
[347900009,1736189435390,-500.0,9.147e-05,2]
[347900012,1736189435399,-500.0,9.147e-05,2]
[347900014,1736189435409,-500.0,9.147e-05,2]
[347900016,1736189435419,-500.0,9.147e-05,2]
[347900018,1736189435428,-500.0,9.147e-05,2]
[347900020,1736189435437,-500.0,9.147e-05,2]
[347900022,1736189435447,-500.0,9.147e-05,2]
[347900024,1736189435456,-500.0,9.147e-05,2]
[347900025,1736189435467,-476.67100091,9.147e-05,2]
[347900027,1736189435476,-500.0,9.147e-05,2]
[347900029,1736189435486,-500.0,9.147e-05,2]
[347900032,1736189435496,-500.0,9.147e-05,2]
[347900033,1736189435505,-500.0,9.147e-05,2]
[347900036,1736189435515,-500.0,9.147e-05,2]
[347900038,1736189435524,-500.0,9.147e-05,2]
[347900039,1736189435534,-500.0,9.147e-05,2]
[347900042,1736189435543,-500.0,9.147e-05,2]
[347900043,1736189435554,-500.0,9.147e-05,2]
[347900045,1736189435564,-500.0,9.147e-05,2]
[347900048,1736189435576,-500.0,9.147e-05,2]
[347900049,1736189435586,-500.0,9.147e-05,2]
[347900051,1736189435595,-500.0,9.147e-05,2]
[347900053,1736189435604,-500.0,9.147e-05,2]
[347900055,1736189435613,-500.0,9.147e-05,2]
[347900057,1736189435623,-500.0,9.147e-05,2]
[347900059,1736189435632,-500.0,9.147e-05,2]
[347900061,1736189435642,-500.0,9.147e-05,2]
[347900063,1736189435652,-500.0,9.147e-05,2]
[347900065,1736189435661,-500.0,9.147e-05,2]
[347900067,1736189435671,-1033.45,9.147e-05,2]
[347900069,1736189435680,-500.0,9.147e-05,2]
[347900071,1736189435690,-500.0,9.147e-05,2]
[347900073,1736189435700,-500.0,9.147e-05,2]
[347900075,1736189435710,-260.97538612,9.147e-05,2]
[347900077,1736189435719,-706.24,9.147e-05,2]
[347900079,1736189435728,-641.99716335,9.147e-05,2]
[347900081,1736189435738,-500.0,9.147e-05,2]
[347900083,1736189435747,-500.0,9.147e-05,2]
[347900085,1736189435756,-989.94,9.147e-05,2]
[347900087,1736189435765,-500.0,9.147e-05,2]
[347900089,1736189435775,-500.0,9.147e-05,2]
[347900091,1736189435785,-500.0,9.147e-05,2]
[347900093,1736189435794,-500.0,9.147e-05,2]
[347900095,1736189435804,-519.82,9.147e-05,2]
[347900097,1736189435814,-502.28,9.147e-05,2]
[347900099,1736189435825,-522.43,9.147e-05,2]
[347900101,1736189435834,-500.0,9.147e-05,2]
[347900103,1736189435843,-2742.45,9.147e-05,2]
[347900105,1736189435852,-500.0,9.147e-05,2]
[347900107,1736189435862,-500.0,9.147e-05,2]
[347900109,1736189435871,-832.31,9.147e-05,2]
[347900111,1736189435880,-500.0,9.147e-05,2]
[347900113,1736189435890,-500.0,9.147e-05,2]
[347900115,1736189435899,-500.0,9.147e-05,2]
[347900117,1736189435909,-526.26156063,9.147e-05,2]
[347900118,1736189435918,-500.0,9.147e-05,2]
[347900120,1736189435927,-431.04,9.147e-05,2]
[347900122,1736189435936,-500.0,9.147e-05,2]
[347900124,1736189435946,-4761.06,9.147e-05,2]
[347900126,1736189435955,-500.0,9.147e-05,2]
[347900129,1736189435965,-1475.24,9.147e-05,2]
[347900130,1736189435974,-839.07,9.147e-05,2]
[347900132,1736189435984,-500.0,9.147e-05,2]
[347900135,1736189435993,-1617.62,9.147e-05,2]
[347900137,1736189436003,-1273.42,9.147e-05,2]
[347900139,1736189436012,-500.0,9.147e-05,2]
[347900141,1736189436021,-500.0,9.147e-05,2]
[347900143,1736189436031,-500.0,9.147e-05,2]
[347900145,1736189436040,-935.08,9.147e-05,2]
[347900147,1736189436050,-549.70430619,9.147e-05,2]
[347900148,1736189436059,-229.25569381,9.147e-05,2]
[347900151,1736189436069,-500.0,9.147e-05,2]
[347900153,1736189436078,-1861.95,9.147e-05,2]
[347900154,1736189436088,-500.0,9.147e-05,2]
[347900157,1736189436097,-736.89,9.147e-05,2]
[347900158,1736189436107,-500.0,9.147e-05,2]
[347900161,1736189436118,-2848.75,9.147e-05,2]
[347900163,1736189436128,-1682.36,9.147e-05,2]
[347900164,1736189436137,-1832.87,9.147e-05,2]
[347900166,1736189436146,-500.0,9.147e-05,2]
[347900168,1736189436156,-500.0,9.147e-05,2]
[347900170,1736189436165,-364.85675864,9.147e-05,2]
[347900172,1736189436174,-500.0,9.147e-05,2]
[347900174,1736189436183,-500.0,9.147e-05,2]
[347900176,1736189436193,-500.0,9.147e-05,2]
[347900178,1736189436202,-500.0,9.147e-05,2]
[347900180,1736189436211,-1766.5,9.147e-05,2]
[347900182,1736189436221,-500.0,9.147e-05,2]
[347900185,1736189436231,-500.0,9.147e-05,2]
[347900186,1736189436240,-1763.47,9.22e-05,2]
[347900188,1736189436250,-674.55,9.22e-05,2]
[347900190,1736189436259,-653.36,9.221e-05,2]
[347900192,1736189436268,-500.0,9.221e-05,2]
[347900194,1736189436278,-500.0,9.221e-05,2]
[347900197,1736189436287,-500.0,9.221e-05,2]
[347900199,1736189436297,-414.69,9.221e-05,2]
[347900201,1736189436308,-500.0,9.221e-05,2]
[347900202,1736189436317,-753.23,9.221e-05,2]
[347900204,1736189436327,-1080.44,9.221e-05,2]
[347900206,1736189436336,-1919.04,9.221e-05,2]
[347900209,1736189436346,-2629.24,9.221e-05,2]
[347900210,1736189436355,-500.0,9.221e-05,2]
[347900212,1736189436364,-500.0,9.221e-05,2]
[347900215,1736189436375,-500.0,9.221e-05,2]
[347900217,1736189436385,-1782.08,9.221e-05,2]
[347900218,1736189436394,-500.0,9.221e-05,2]
[347900221,1736189436403,-510.57,9.221e-05,2]
[347900223,1736189436413,-891.65,9.221e-05,2]
[347900225,1736189436422,-721.63,9.221e-05,2]
[347900227,1736189436431,-977.83,9.221e-05,2]
[347900229,1736189436441,-1000.0,9.221e-05,2]
[347900231,1736189436450,-500.0,9.221e-05,2]
[347900233,1736189436459,-500.0,9.221e-05,2]
[347900235,1736189436469,-934.01,9.222e-05,2]
[347900237,1736189436479,-1000.0,9.247e-05,2]
[347900239,1736189436488,-150.0,9.274e-05,2]
[347900241,1736189436497,-732.35,9.321e-05,2]
[347900242,1736189436506,-587.95,9.321e-05,2]
[347900244,1736189436515,-936.15,9.321e-05,2]
[347900246,1736189436524,-2514.86,9.321e-05,2]
[347900248,1736189436533,-913.34,9.321e-05,2]
[347900250,1736189436543,-1519.91,9.321e-05,2]
[347900252,1736189436554,-856.06,9.321e-05,2]
[347900254,1736189436563,-828.94,9.321e-05,2]
[347900256,1736189436573,-500.0,9.321e-05,2]
[347900258,1736189436583,-1332.6,9.321e-05,2]
[347900260,1736189436592,-150.0,9.344e-05,2]
[347900262,1736189436601,-150.0,9.344e-05,2]
[347900264,1736189436610,-756.0,9.39e-05,2]
[347900266,1736189436619,-950.49,9.394e-05,2]
[347900268,1736189436630,-500.0,9.394e-05,2]
[347900270,1736189436639,-500.0,9.394e-05,2]
[347900272,1736189436648,-1000.0,9.4e-05,2]
[347900274,1736189436657,-1004.0,9.4e-05,2]
[347900276,1736189436666,-150.0,9.414e-05,2]
[347900278,1736189436676,-500.0,9.42e-05,2]
[347900280,1736189436685,-380.74,9.42e-05,2]
[347900282,1736189436694,-986.85,9.42e-05,2]
[347900284,1736189436703,-500.0,9.42e-05,2]
[347900286,1736189436713,-1111.18,9.42e-05,2]
[347900288,1736189436722,-500.0,9.42e-05,2]
[347900290,1736189436731,-801.77,9.42e-05,2]
[347900292,1736189436740,-500.0,9.42e-05,2]
[347900294,1736189436749,-1156.68,9.42e-05,2]
[347900296,1736189436758,-560.05,9.42e-05,2]
[347900298,1736189436767,-500.0,9.42e-05,2]
[347900300,1736189436776,-249.41958392,9.42e-05,2]
[347900301,1736189436786,-500.0,9.42e-05,2]
[347900303,1736189436795,-500.0,9.42e-05,2]
[347900305,1736189436804,-724.365056,9.42e-05,2]
[347900307,1736189436814,-500.0,9.42e-05,2]
[347900309,1736189436824,-589.03,9.42e-05,2]
[347900311,1736189436834,-625.88553,9.421e-05,2]
[347900313,1736189436843,-792.9,9.421e-05,2]
[347900315,1736189436852,-1150.01,9.421e-05,2]
[347900317,1736189436861,-500.0,9.421e-05,2]
[347900319,1736189436871,-589.97,9.421e-05,2]
[347900321,1736189436880,-1543.22,9.421e-05,2]
[347900323,1736189436889,-500.0,9.421e-05,2]
[347900325,1736189436898,-292.47815401,9.421e-05,2]
[347900327,1736189436907,-258.03,9.421e-05,2]
[347900329,1736189436917,-500.0,9.421e-05,2]
[347900331,1736189436926,-500.0,9.421e-05,2]
[347900333,1736189436935,-500.0,9.421e-05,2]
[347900335,1736189436944,-500.0,9.421e-05,2]
[347900338,1736189436954,-509.93,9.421e-05,2]
[347900340,1736189436963,-500.0,9.421e-05,2]
[347900341,1736189436972,-500.0,9.421e-05,2]
[347900343,1736189436981,-500.0,9.421e-05,2]
[347900345,1736189436991,-500.0,9.421e-05,2]
[347900347,1736189437000,-266.41642577,9.421e-05,2]
[347900349,1736189437009,-500.0,9.421e-05,2]
[347900351,1736189437018,-500.0,9.421e-05,2]
[347900353,1736189437029,-500.0,9.421e-05,2]
[347900355,1736189437038,-500.0,9.421e-05,2]
[347900357,1736189437047,-314.32996722,9.421e-05,2]
[347900414,1736189437564,-185.67003278,9.421e-05,2]
[347900416,1736189437578,-465.43619477,9.421e-05,2]
[347900418,1736189437590,-500.0,9.421e-05,2]
[347900420,1736189437599,-500.0,9.421e-05,2]
[347900422,1736189437608,-500.0,9.421e-05,2]
[347900424,1736189437618,-500.0,9.421e-05,2]
[347900426,1736189437627,-500.0,9.421e-05,2]
[347900428,1736189437637,-500.0,9.421e-05,2]
[347900430,1736189437646,-500.0,9.421e-05,2]
[347900432,1736189437655,-500.0,9.421e-05,2]
[347900434,1736189437665,-223.14,9.421e-05,2]
[347900436,1736189437675,-500.0,9.421e-05,2]
[347900438,1736189437684,-500.0,9.421e-05,2]
[347900440,1736189437694,-500.0,9.421e-05,2]
[347900442,1736189437703,-502.84255885,9.421e-05,2]
[347900444,1736189437712,-500.0,9.421e-05,2]
[347900446,1736189437722,-500.0,9.421e-05,2]
[347900447,1736189437731,-500.0,9.421e-05,2]
[347900450,1736189437741,-500.0,9.421e-05,2]
[347900451,1736189437750,-1033.45,9.421e-05,2]
[347900453,1736189437759,-500.0,9.421e-05,2]
[347900456,1736189437769,-500.0,9.421e-05,2]
[347900457,1736189437779,-178.32568669,9.421e-05,2]
[347900460,1736189437791,-321.67431331,9.421e-05,2]